[Event "44th Chess Olympiad Open 2022"]
[Site "Chennai"]
[Date "2022.08.01"]
[Round "4.46"]
[White "Lim, Zhuo Ren"]
[Black "Rakotomaharo, Fy Antenaina"]
[Result "0-1"]
[WhiteElo "2318"]
[BlackElo "2490"]
[Annotator "TA"]
[PlyCount "94"]
[EventDate "2022.??.??"]
[TimeControl "60"]

{[%evp 11,93,25,25,22,41,30,32,32,48,19,18,15,15,12,6,15,14,25,35,0,0,-5,-5,
-12,-14,-28,-30,-32,-37,-34,95,0,0,-15,-5,-12,-19,-20,-20,-16,-20,-29,-29,-37,
-60,-52,-25,-26,-12,-118,-119,-119,-119,-120,-120,-121,-119,-119,-119,-145,
-139,-140,-140,-153,-153,-156,-133,-810,-810,-1119,-1110,-1033,-564,-478,-467,
-445,-443,-29987,-29988,-29997,-29998,-29998,-29999,-29999]} 1. d4 {[%emt 0:00:
00]} Nf6 {[%emt 0:00:05]} 2. c4 {[%emt 0:00:13]} e6 {[%emt 0:00:05]} 3. Nf3 {
[%emt 0:00:17]} d5 {[%emt 0:00:06]} 4. g3 {[%emt 0:00:20]} Be7 {[%emt 0:00:11]}
5. Bg2 {[%emt 0:00:20]} O-O {[%emt 0:00:05]} 6. O-O {[%emt 0:00:23]} a5 {
[%emt 0:00:06]} 7. Qc2 {[%emt 0:01:01] is recently more successful than 7.Nc3.
E06: Closed Catalan: Early deviations.} Nc6 {[%emt 0:00:06]} 8. a3 {[%emt 0:00:
00] [#]} dxc4 $146 {[%emt 0:00:20]} ({Predecessor:} 8... Re8 9. Bf4 Bd6 10. c5
Bxf4 11. gxf4 Ne4 12. b3 Qf6 13. e3 e5 14. Nxe5 Bf5 {1-0 (31) Baltag,I (2393)
-Dodon,V Kishinev 2021}) 9. Qxc4 {[%emt 0:00:40] White is slightly better.} a4
{[%emt 0:00:06]} 10. Bg5 {[%emt 0:10:35]} Bd7 {[%emt 0:02:26]} 11. Nbd2 {
[%emt 0:03:16]} Na5 {[%emt 0:07:27]} 12. Qc2 {[%emt 0:03:00]} c5 {[%emt 0:00:
00]} 13. dxc5 {[%emt 0:01:28]} Rc8 {[%emt 0:00:41]} 14. Bxf6 {[%emt 0:03:14]}
gxf6 {[%emt 0:00:10]} 15. Rac1 {[%emt 0:03:48]} (15. Ne4 $5 {[%cal Ra1d1]})
15... Rxc5 {[%emt 0:06:12]} 16. Qd3 {[%emt 0:01:04]} Bc6 {[%emt 0:10:50]} 17.
Qe3 {[%emt 0:01:29]} Qd5 {[%emt 0:01:31]} 18. Ne1 {[%emt 0:09:20]} Qe5 {
[%emt 0:02:42]} 19. Nd3 {[%emt 0:07:26][%csl Yc5,Ye5]} Qxe3 {[%emt 0:00:09]}
20. fxe3 {[%emt 0:00:02]} Rb5 {[%emt 0:10:20]} (20... Rxc1 $15 {stays ahead.}
21. Rxc1 Bb5) 21. Bxc6 {[%emt 0:00:49]} (21. Rf4 $16) 21... Nxc6 $11 {[%emt 0:
00:00][%cal Ya5c6,Yc6e5,Ye5g4]} 22. Ne4 {[%emt 0:06:48][%cal Yd2e4,Ye4c5,Yc5a4]
} f5 {[%emt 0:02:08]} 23. Nec5 {[%emt 0:01:47] [#]} Ne5 $1 {[%emt 0:11:52]
[%cal Yf8d8]} 24. Nxa4 {[%emt 0:09:08]} Bg5 {[%emt 0:04:26] aiming for ...Nxd3.
} 25. Nf4 {[%emt 0:02:52]} Ng4 {[%emt 0:00:17] And now ... e5 would win.} 26.
Rc5 {[%emt 0:02:34]} Rb3 {[%emt 0:08:06]} 27. Rf3 {[%emt 0:00:00]} b5 $36 {
[%emt 0:10:05] Black has the initiative.} 28. h3 {[%emt 0:02:20]} bxa4 {
[%emt 0:01:56]} 29. hxg4 {[%emt 0:00:04]} Be7 {[%emt 0:00:00]} 30. Ra5 {
[%emt 0:02:36]} (30. Rc4 $1 $11 {remains equal.}) 30... fxg4 $17 {[%emt 0:00:
08]} 31. Rf1 {[%emt 0:00:35]} Rxe3 {[%emt 0:01:15]} 32. Kf2 {[%emt 0:03:07] [#]
} Re4 {[%emt 0:00:49]} 33. Rc1 {[%emt 0:00:58]} Rb8 {[%emt 0:00:00]} 34. Nd3 {
[%emt 0:00:18]} Bd8 {[%emt 0:01:02]} 35. Ra6 {[%emt 0:01:00]} Bb6+ {[%emt 0:00:
16]} 36. Kf1 {[%emt 0:01:34]} Be3 {[%emt 0:01:31]} 37. Rcc6 {[%emt 0:01:00]}
Rb5 {[%emt 0:00:11] Against Ra5. Strongly threatening ...Rf5+. Black is more
active.} 38. Rc8+ {[%emt 0:00:25]} Kg7 {[%emt 0:00:04] Hoping for ...Rf5+.} 39.
Rca8 $2 {[%emt 0:00:03] This move loses the game for White.} (39. Kg2 $17)
39... Rf5+ $19 {[%emt 0:02:44]} 40. Ke1 {[%emt 0:00:00]} Rh5 {[%emt 0:01:24]
[%cal Rh5h1]} 41. Kf1 {[%emt 0:30:04]} Bd4 {[%emt 0:00:00]} 42. Nf4 {[%emt 0:
00:00]} Rh2 {[%emt 0:01:24][%cal Ye4f4] ( -> ...Rxf4+!)} 43. Rxa4 {[%emt 0:00:
00][%cal Ye2e3]} e5 {[%emt 0:00:20][%cal Ye6e5,Ye5f4,Yf4g3]} 44. Re8 {[%emt 0:
00:00] [#]} (44. Rxd4 $19 Rxd4 45. Ng2) 44... exf4 $1 {[%emt 0:00:31] Black
mates.} 45. Rxe4 {[%emt 0:00:00]} (45. gxf4 Rxf4+) 45... Rh1+ {[%emt 0:00:02]}
46. Kg2 {[%emt 0:00:00]} Rg1+ {[%emt 0:00:02]} 47. Kh2 {[%emt 0:00:00]} fxg3# {
[%emt 0:00:34] Weighted Error Value: White=0.47/Black=0.15 (very precise)} 0-1

[Event "44th Chess Olympiad Open 2022"]
[Site "Chennai"]
[Date "2022.08.01"]
[Round "4.46"]
[White "Tan, Jun Ying"]
[Black "Rakotomaharavo, Dylan"]
[Result "1/2-1/2"]
[WhiteElo "2191"]
[BlackElo "1948"]
[Annotator "NA RC"]
[PlyCount "168"]
[EventDate "2022.??.??"]
[TimeControl "60"]

1. d4 {[%emt 0:00:15]} Nf6 {[%emt 0:00:28]} 2. c4 {[%emt 0:00:05]} e6 {[%emt 0:
00:00]} 3. Nc3 {[%emt 0:00:04]} Bb4 {[%emt 0:00:11]} 4. e3 {[%emt 0:01:02]} O-O
{[%emt 0:00:25]} 5. Bd3 {[%emt 0:02:01]} d5 {[%emt 0:01:41]} 6. Nf3 {[%emt 0:
00:00]} b6 {[%emt 0:01:28]} 7. O-O {[%emt 0:01:14]} dxc4 {[%emt 0:04:11]} 8.
Bxc4 {[%emt 0:00:07]} Ba6 {[%emt 0:00:04]} 9. Bxa6 {[%emt 0:05:33]} Nxa6 {
[%emt 0:00:07]} 10. Qa4 {[%emt 0:00:39]} Qc8 {[%emt 0:00:07]} 11. Bd2 {[%emt 0:
00:00]} Qb7 {[%emt 0:01:19]} 12. Rfc1 {[%emt 0:01:36]} Rfc8 {[%emt 0:01:59]}
13. Nb5 {[%emt 0:11:00]} Bf8 {[%emt 0:00:53]} 14. b4 {[%emt 0:07:00]} c6 {
[%emt 0:01:41]} 15. Na3 {[%emt 0:00:14]} b5 {[%emt 0:11:36]} 16. Qb3 {[%emt 0:
00:00]} Bd6 {[%emt 0:00:23]} 17. Nc2 {[%emt 0:02:03]} Nb8 {[%emt 0:01:12]} 18.
a4 {[%emt 0:03:22]} Nbd7 {[%emt 0:00:20]} 19. a5 {[%emt 0:00:26]} e5 {[%emt 0:
00:00]} 20. Ng5 {[%emt 0:13:44]} Nf8 {[%emt 0:00:16]} 21. dxe5 {[%emt 0:00:31]}
Bxe5 {[%emt 0:00:08]} 22. Nd4 {[%emt 0:01:15]} Bxd4 {[%emt 0:00:38]} 23. exd4 {
[%emt 0:00:12]} h6 {[%emt 0:00:12]} 24. Nf3 {[%emt 0:00:19]} Ne6 {[%emt 0:00:
00]} 25. Be3 {[%emt 0:01:16]} Qd7 {[%emt 0:01:45]} 26. Ne5 {[%emt 0:10:10]} Qd6
{[%emt 0:00:48]} 27. Qb2 {[%emt 0:02:49]} Rc7 {[%emt 0:01:06]} 28. Rc2 {
[%emt 0:10:34]} Rac8 {[%emt 0:02:56]} 29. Rac1 {[%emt 0:01:19]} Nd5 {[%emt 0:
00:00]} 30. Nd3 {[%emt 0:04:42]} Ne7 {[%emt 0:02:02]} 31. Rd2 {[%emt 0:03:38]}
Nd5 {[%emt 0:04:52]} 32. Qb1 {[%emt 0:03:26]} f5 {[%emt 0:01:37]} 33. g3 {
[%emt 0:02:56]} Nxe3 {[%emt 0:06:30]} 34. fxe3 {[%emt 0:00:03]} Ng5 {[%emt 0:
00:00]} 35. Qb3+ {[%emt 0:01:21]} Kh7 {[%emt 0:00:26]} 36. Ne5 {[%emt 0:00:41]}
Qd5 {[%emt 0:01:39]} 37. Qxd5 {[%emt 0:02:47]} cxd5 {[%emt 0:00:07]} 38. Rf1 {
[%emt 0:01:28]} g6 {[%emt 0:02:06]} 39. g4 {[%emt 0:00:47]} fxg4 {[%emt 0:00:
00]} 40. Nxg4 {[%emt 0:00:38]} Kg7 {[%emt 0:00:16]} 41. h4 {[%emt 0:36:22]} Ne4
{[%emt 0:30:12]} 42. Rg2 {[%emt 0:00:27]} Rc1 {[%emt 0:01:43]} 43. Ne5 {
[%emt 0:00:00]} g5 {[%emt 0:00:00]} 44. hxg5 {[%emt 0:00:00]} hxg5 {[%emt 0:00:
00]} 45. Nd3 {[%emt 0:00:00]} Rxf1+ {[%emt 0:00:00]} 46. Kxf1 {[%emt 0:00:00]}
Rc3 {[%emt 0:00:00]} 47. Nc5 {[%emt 0:00:00]} Kg6 {[%emt 0:00:00]} 48. Ke2 {
[%emt 0:00:00]} Kf5 {[%emt 0:00:00]} 49. Nxe4 {[%emt 0:00:00]} Kxe4 {[%emt 0:
00:00]} 50. Rxg5 {[%emt 0:00:00]} Rxe3+ {[%emt 0:00:00]} 51. Kd2 {[%emt 0:00:
00]} Rd3+ {[%emt 0:00:00]} 52. Kc2 {[%emt 0:00:00]} Rxd4 {[%emt 0:00:00]} 53.
Rg7 {[%emt 0:00:00]} Rc4+ {[%emt 0:00:00]} 54. Kd2 {[%emt 0:00:00]} Kd4 {
[%emt 0:00:00]} 55. Rg4+ {[%emt 0:00:00]} Ke5 {[%emt 0:00:00]} 56. Rg7 {
[%emt 0:00:00]} Rxb4 {[%emt 0:00:00]} 57. Rxa7 {[%emt 0:00:00]} Ra4 {[%emt 0:
00:00]} 58. a6 {[%emt 0:01:48]} Kd4 {[%emt 0:00:00]} 59. Ra8 {[%emt 0:00:34]}
Ra2+ {[%emt 0:00:00]} 60. Kc1 {[%emt 0:00:18]} Kc3 {[%emt 0:00:00]} 61. Kb1 {
[%emt 0:00:23]} Ra4 {[%emt 0:00:00]} 62. a7 {[%emt 0:00:46]} Kb3 {[%emt 0:00:
00]} 63. Rd8 {[%emt 0:00:42]} Rxa7 {[%emt 0:00:00]} 64. Rxd5 {[%emt 0:00:03]}
b4 {[%emt 0:00:00]} 65. Rd3+ {[%emt 0:00:08]} Kc4 {[%emt 0:00:00]} 66. Rh3 {
[%emt 0:00:03]} Rg7 {[%emt 0:00:00]} 67. Kb2 {[%emt 0:00:21]} Rg2+ {[%emt 0:00:
00]} 68. Kb1 {[%emt 0:00:10]} Kb5 {[%emt 0:00:00]} 69. Rh5+ {[%emt 0:00:19]}
Ka4 {[%emt 0:00:00]} 70. Rh3 {[%emt 0:00:06]} Re2 {[%emt 0:04:32]} 71. Rg3 {
[%emt 0:00:11]} Kb5 {[%emt 0:00:23]} 72. Rg5+ {[%emt 0:00:14]} Kc4 {[%emt 0:00:
00]} 73. Rg3 {[%emt 0:00:11]} Rd2 {[%emt 0:00:12]} 74. Rh3 {[%emt 0:00:17]} Rd8
{[%emt 0:14:04]} 75. Kb2 {[%emt 0:00:23]} Rf8 {[%emt 0:00:20]} 76. Rh4+ {
[%emt 0:00:31]} Kb5 {[%emt 0:00:05]} 77. Rh5+ {[%emt 0:00:09]} Ka4 {[%emt 0:00:
00]} 78. Rh3 {[%emt 0:00:09]} Rf4 {[%emt 0:00:35]} 79. Rg3 {[%emt 0:00:24]} Rh4
{[%emt 0:00:15]} 80. Rf3 {[%emt 0:00:12]} Rh2+ {[%emt 0:00:30]} 81. Kb1 {
[%emt 0:00:08]} Rh1+ {[%emt 0:00:15]} 82. Kb2 {[%emt 0:00:06]} Rh2+ {[%emt 0:
00:00]} 83. Kb1 {[%emt 0:00:05]} Rh1+ {[%emt 0:00:05]} 84. Kb2 {[%emt 0:00:03]}
Rh2+ {[%emt 0:00:08]} 1/2-1/2

[Event "44th Chess Olympiad Open 2022"]
[Site "Chennai"]
[Date "2022.08.01"]
[Round "4.46"]
[White "Andrianiaina, Heritiana"]
[Black "Wong, Yinn Long"]
[Result "1-0"]
[WhiteElo "2095"]
[BlackElo "2381"]
[Annotator "TA"]
[PlyCount "189"]
[EventDate "2022.??.??"]
[TimeControl "60"]

{[%evp 12,189,17,6,9,3,3,0,0,0,0,0,33,50,42,11,22,0,9,14,10,11,28,16,24,19,43,
20,75,70,74,60,83,100,147,144,243,250,281,281,281,281,279,254,256,243,357,278,
266,169,196,189,194,178,349,333,384,377,372,299,326,327,312,310,371,319,311,
307,480,475,560,560,547,527,10624,3054,29956,12366,6895,10209,2010,632,1942,
727,29960,29962,29964,29963,29964,29959,29961,29961,29961,29961,29960,29962,
29962,29963,29962,29961,29959,29960,29961,29962,29962,29963,29962,29964,29963,
29965,29964,29965,29965,29966,29968,29969,29969,29971,29972,29969,29969,29970,
29970,29971,29972,29973,29972,29974,29976,29972,29972,29973,29973,29974,29974,
0,29972,29969,29974,29975,29976,29977,29977,29978,29978,29979,29979,29980,
29980,29981,29991,29982,29985,29986,29986,29987,29987,29988,29996,29989,29989,
29990,29990,29988,29995,29987,29986,29987,29988,29988,29992,29988,29988,29987,
29988,29987,29997,29990,29990,29991]} 1. d4 {[%emt 0:00:56]} Nf6 {[%emt 0:00:
00]} 2. c4 {[%emt 0:00:19]} e6 {[%emt 0:00:05]} 3. Nc3 {[%emt 0:00:54]} Bb4 {
[%emt 0:00:06]} 4. Qc2 {[%emt 0:00:07]} O-O {[%emt 0:00:32]} 5. a3 {[%emt 0:00:
00]} Bxc3+ {[%emt 0:00:06]} 6. Qxc3 {[%emt 0:00:05]} d6 {[%emt 0:00:19] 6...d5
is the modern continuation.} 7. Nf3 {[%emt 0:07:28]} Re8 {[%emt 0:00:07] E32:
Nimzo-Indian: Classical (4 Qc2): 4...0-0.} 8. b4 {[%emt 0:02:26]} a5 {[%emt 0:
00:00]} 9. Bb2 {[%emt 0:00:28]} (9. e3 {with more complications.} e5 10. dxe5
axb4 11. axb4 Ne4 12. Qb2) 9... axb4 {[%emt 0:01:38] The position is equal.}
10. axb4 {[%emt 0:00:10]} Rxa1+ {[%emt 0:00:03]} 11. Bxa1 {[%emt 0:00:10]} e5 {
[%emt 0:06:44]} 12. dxe5 {[%emt 0:19:11]} dxe5 {[%emt 0:00:06]} 13. e3 {
[%emt 0:03:02] [#]} (13. Nxe5 {is more complex.} Ne4 14. Qd3 Qe7 15. c5) 13...
c5 $146 {[%emt 0:02:36]} (13... Na6 {with more complications.} 14. Nxe5 Ne4 15.
Qd3 Bf5) ({Predecessor:} 13... Bg4 14. Be2 c5 15. Nxe5 Bxe2 16. Kxe2 cxb4 17.
Qxb4 Ne4 18. Nf3 Qc8 19. Rd1 Na6 {1-0 (40) Delchev,A (2613)-Zelcic,R (2578)
Zadar 2007}) 14. Be2 {[%emt 0:10:38]} cxb4 {[%emt 0:16:16]} (14... Nc6 {
feels hotter.} 15. bxc5 Ne4 16. Qa3 f6) 15. Qxb4 {[%emt 0:00:21]} Nc6 {[%emt 0:
00:00]} 16. Qd2 {[%emt 0:00:49]} Qe7 {[%emt 0:02:27]} 17. O-O {[%emt 0:00:19]}
Bg4 {[%emt 0:00:33]} 18. h3 {[%emt 0:02:36]} Bh5 {[%emt 0:01:05]} 19. Rb1 {
[%emt 0:02:09]} Rd8 {[%emt 0:06:14]} (19... Ra8 $1 $11 {keeps the balance.})
20. Qe1 {[%emt 0:00:21]} Ne4 {[%emt 0:12:30] [#]} 21. Nxe5 $1 {[%emt 0:10:27]}
Nxe5 {[%emt 0:04:57] White leaves nothing to chance now.} (21... Bxe2 22. Nxc6)
22. Bxh5 {[%emt 0:00:06] This bishop pair is nice.} Nd3 {[%emt 0:13:07] [#]
Prevents Qb4.} (22... Nxc4 $142 23. Be2 Rc8) 23. Qa5 $1 $16 {[%emt 0:00:49]
[%cal Yb1b7] Rxb7! is the strong threat.} Rf8 {[%emt 0:03:21]} (23... Qh4 $16 {
keeps fighting.}) 24. Qd5 $18 {[%emt 0:19:23][%csl Yb7,Yd3]} Qh4 {[%emt 0:00:
00]} 25. g3 {[%emt 0:07:10]} (25. Qxd3 $6 Qxf2+ 26. Kh1 (26. Kh2 Qg3+ 27. Kg1
Qf2+ 28. Kh1 Ng3+ 29. Kh2 Nxh5 $16) 26... Ng3+ 27. Kh2 Nxh5 $18) 25... Nxg3 {
[%emt 0:00:32]} 26. fxg3 {[%emt 0:00:05] Really sharp!} (26. Qxd3 $6 Nxh5 27.
Qf5 b6 $16) (26. Bxf7+ $2 Rxf7 27. Qxd3 Ne4 $19) 26... Qxg3+ {[%emt 0:00:03]}
27. Qg2 {[%emt 0:00:10]} Qxe3+ {[%emt 0:00:04]} 28. Kh1 {[%emt 0:00:37][%csl
Ga1][%cal Rg2g7]} Qh6 {[%emt 0:04:23] [#]} (28... g6 $142 29. Qf3 Re8) 29. Rg1
$1 {[%emt 0:01:56][%cal Rg2g7,Yb1g1,Yg1g5,Yg5d5,Yd5d7]} g6 {[%emt 0:00:00]} 30.
Qg5 {[%emt 0:03:00]} Qxg5 {[%emt 0:03:22]} 31. Rxg5 {[%emt 0:00:02] Black must
now prevent Bf3.} Ra8 {[%emt 0:00:01]} 32. Bd4 {[%emt 0:00:18] Strongly
threatening Bf3.} Ra4 $2 {[%emt 0:05:50]} (32... Rd8 {was called for.}) 33. Rd5
{[%emt 0:00:44][%cal Rd5d8]} f5 {[%emt 0:00:20]} 34. Bd1 {[%emt 0:00:00]} Ra2 {
[%emt 0:01:33]} 35. Be3 {[%emt 0:04:13] Against Rd2} Nf2+ {[%emt 0:00:00]} 36.
Bxf2 {[%emt 0:00:05]} Rxf2 {[%emt 0:00:00] Endgame KRB-KR} 37. Kg1 {[%emt 0:00:
22]} Rb2 {[%emt 0:00:40]} 38. Rd7 {[%emt 0:00:25]} b6 {[%emt 0:00:50]} 39. Bf3
{[%emt 0:01:28]} g5 {[%emt 0:02:04]} (39... Rb3 $142) 40. Rd5 {[%emt 0:01:37]}
g4 {[%emt 0:00:39]} 41. hxg4 {[%emt 0:30:08]} fxg4 {[%emt 0:02:27]} 42. Bxg4 {
[%emt 0:00:00]} Rb1+ {[%emt 0:06:32]} 43. Kf2 {[%emt 0:00:00] White wants to
mate with Bf5.} Rh1 {[%emt 0:04:49]} 44. Rg5+ {[%emt 0:00:00]} (44. Rh5 $142
Rxh5 45. Bxh5 Kf8 46. Ke3 Ke7 47. Kd4 Kd6 48. Bf3 h6 49. Be2) 44... Kf8 {
[%emt 0:01:25]} 45. Rh5 {[%emt 0:00:00]} Rc1 {[%emt 0:00:00]} 46. Be6 {[%emt 0:
00:00]} (46. Be2 $142 Kg7 47. Rb5) 46... Ke7 {[%emt 0:00:00]} 47. Bg8 {[%emt 0:
00:00]} (47. Bd5 $142 Kf6 48. Rh6+ Kf5 49. Rxh7) 47... Kd6 {[%emt 0:00:38]} 48.
Ke3 {[%emt 0:00:00]} Kc6 {[%emt 0:00:52]} 49. Bd5+ {[%emt 0:00:00]} Kc5 {
[%emt 0:00:46]} 50. Bf7+ {[%emt 0:00:00]} Kc6 {[%emt 0:00:00]} 51. Rxh7 {
[%emt 0:00:00]} Re1+ {[%emt 0:02:09]} 52. Kd4 {[%emt 0:00:00]} Rd1+ {[%emt 0:
00:03]} 53. Kc3 {[%emt 0:00:00]} Rc1+ {[%emt 0:00:01]} 54. Kd2 {[%emt 0:00:00]}
Rg1 {[%emt 0:01:06]} 55. Rh6+ {[%emt 0:00:00]} Kc5 {[%emt 0:00:00]} 56. Rh5+ {
[%emt 0:00:00]} Kd6 {[%emt 0:01:56]} 57. Kc3 {[%emt 0:00:00]} Rc1+ {[%emt 0:01:
37]} 58. Kb2 {[%emt 0:00:00]} Rg1 {[%emt 0:00:26]} 59. Be8 {[%emt 0:00:00]} Rg3
{[%emt 0:01:27]} 60. Ba4 {[%emt 0:00:00]} Kc7 {[%emt 0:00:00]} 61. Bb3 {
[%emt 0:00:00]} Kc6 {[%emt 0:00:45]} 62. Ka3 {[%emt 0:00:00]} Rg1 {[%emt 0:00:
03]} 63. Kb4 {[%emt 0:00:00]} Rb1 {[%emt 0:00:17]} 64. Rh6+ {[%emt 0:00:00]}
Kb7 {[%emt 0:00:18]} 65. Ka4 {[%emt 0:00:00]} Rb2 {[%emt 0:00:00]} 66. Rf6 {
[%emt 0:00:00]} Kc7 {[%emt 0:00:42]} 67. Kb4 {[%emt 0:00:00]} Rb1 {[%emt 0:00:
31]} 68. Kc3 {[%emt 0:00:00]} Rg1 {[%emt 0:01:10]} 69. Bc2 {[%emt 0:00:00]} Rc1
{[%emt 0:00:52]} 70. Kd2 {[%emt 0:00:00]} Ra1 {[%emt 0:00:00]} 71. Be4 {
[%emt 0:00:00]} Ra3 {[%emt 0:00:01]} 72. Rc6+ {[%emt 0:00:00]} Kb7 {[%emt 0:00:
05]} 73. Rf6+ {[%emt 0:00:00]} Kc7 {[%emt 0:00:13]} 74. Bd3 {[%emt 0:00:00]
White mates.} Kb7 {[%emt 0:00:39]} 75. Ke3 {[%emt 0:00:00]} Ra1 {[%emt 0:01:23]
} 76. Be4+ {[%emt 0:00:00]} Kc7 {[%emt 0:00:42]} 77. Kd4 {[%emt 0:00:00]} Rd1+
{[%emt 0:00:17]} 78. Ke5 {[%emt 0:00:00]} Re1 {[%emt 0:00:00]} 79. Rf7+ {
[%emt 0:00:00]} Kc8 {[%emt 0:00:04]} 80. Kd5 {[%emt 0:00:00]} Rc1 {[%emt 0:00:
44]} 81. Bf5+ {[%emt 0:00:00]} Kb8 {[%emt 0:00:06]} 82. Be6 {[%emt 0:00:00]}
Re1 {[%emt 0:01:00]} 83. Re7 {[%emt 0:00:00]} Ka8 {[%emt 0:00:00]} 84. Kc6 {
[%emt 0:00:00]} Rb1 {[%emt 0:00:03]} 85. Rb7 {[%emt 0:00:00]} Re1 {[%emt 0:00:
35]} 86. Bd5 {[%emt 0:00:00]} Rg1 {[%emt 0:00:41]} 87. Rxb6 {[%emt 0:00:00]}
Rg6+ {[%emt 0:00:04]} 88. Kc7+ {[%emt 0:00:00]} Ka7 {[%emt 0:00:00]} 89. Rb1 {
[%emt 0:00:00]} Rg7+ {[%emt 0:00:13]} 90. Kc6 {[%emt 0:00:00]} Ka8 {[%emt 0:00:
48]} 91. Ra1+ {[%emt 0:00:00]} Kb8 {[%emt 0:00:02]} 92. c5 {[%emt 0:00:17]}
Rc7+ {[%emt 0:00:12]} 93. Kb5 {[%emt 0:00:08][%csl Gd5][%cal Ra1a8]} Rc8 {
[%emt 0:01:28]} 94. Ra8+ {[%emt 0:00:07]} Kc7 {[%emt 0:00:04]} 95. Rxc8+ {
[%emt 0:00:38] Weighted Error Value: White=0.23 (precise) /Black=0.62} 1-0

[Event "44th Chess Olympiad Open 2022"]
[Site "Chennai"]
[Date "2022.08.01"]
[Round "4.46"]
[White "Rajerison, Mananihaja Charly"]
[Black "Poh, Yu Tian"]
[Result "0-1"]
[WhiteElo "1912"]
[BlackElo "2118"]
[Annotator "NA RC"]
[PlyCount "123"]
[EventDate "2022.??.??"]
[TimeControl "60"]

1. e4 {[%emt 0:00:01]} c5 {[%emt 0:00:06]} 2. Nf3 {[%emt 0:00:06]} d6 {[%emt 0:
00:00]} 3. d4 {[%emt 0:00:06]} cxd4 {[%emt 0:00:04]} 4. Nxd4 {[%emt 0:00:03]}
Nf6 {[%emt 0:00:06]} 5. Nc3 {[%emt 0:00:14]} a6 {[%emt 0:00:07]} 6. Bc4 {
[%emt 0:00:11]} e6 {[%emt 0:00:05]} 7. Bb3 {[%emt 0:00:04]} b5 {[%emt 0:00:03]}
8. O-O {[%emt 0:00:59]} Be7 {[%emt 0:00:09]} 9. f4 {[%emt 0:04:53]} O-O {
[%emt 0:00:11]} 10. a3 {[%emt 0:04:06]} Bb7 {[%emt 0:01:00]} 11. f5 {[%emt 0:
00:00]} e5 {[%emt 0:00:27]} 12. Nde2 {[%emt 0:00:09]} Nbd7 {[%emt 0:01:23]} 13.
Ng3 {[%emt 0:02:30]} Rc8 {[%emt 0:01:02]} 14. Kh1 {[%emt 0:01:32]} Nb6 {
[%emt 0:01:48]} 15. Bd5 {[%emt 0:29:48]} Nbxd5 {[%emt 0:01:58]} 16. exd5 {
[%emt 0:09:07]} Rxc3 {[%emt 0:08:07]} 17. bxc3 {[%emt 0:00:08]} Nxd5 {[%emt 0:
00:00]} 18. f6 {[%emt 0:03:00]} Nxf6 {[%emt 0:08:04]} 19. Nf5 {[%emt 0:00:26]}
Be4 {[%emt 0:01:19]} 20. Bg5 {[%emt 0:02:59]} Qd7 {[%emt 0:08:14]} 21. Nxe7+ {
[%emt 0:11:56]} Qxe7 {[%emt 0:00:05]} 22. Qe2 {[%emt 0:01:34]} d5 {[%emt 0:00:
00]} 23. a4 {[%emt 0:00:39]} Qe6 {[%emt 0:02:01]} 24. axb5 {[%emt 0:02:30]}
axb5 {[%emt 0:00:09]} 25. Ra5 {[%emt 0:01:19]} Nd7 {[%emt 0:04:11]} 26. Rfa1 {
[%emt 0:01:43]} h6 {[%emt 0:01:35]} 27. Ra6 {[%emt 0:01:43]} Qf5 {[%emt 0:00:
00]} 28. Be7 {[%emt 0:00:35]} Re8 {[%emt 0:02:43]} 29. Rf1 {[%emt 0:00:18]} Qh7
{[%emt 0:00:21]} 30. Qxb5 {[%emt 0:08:00]} Bxg2+ {[%emt 0:02:30]} 31. Kxg2 {
[%emt 0:02:01]} Qe4+ {[%emt 0:03:30]} 32. Kg1 {[%emt 0:00:27]} Rxe7 {[%emt 0:
00:00]} 33. Ra8+ {[%emt 0:00:07]} Kh7 {[%emt 0:00:21]} 34. Qd3 {[%emt 0:00:09]}
Nc5 {[%emt 0:01:00]} 35. Qxe4+ {[%emt 0:00:08]} Nxe4 {[%emt 0:00:07]} 36. Rc8 {
[%emt 0:00:34]} f5 {[%emt 0:02:06]} 37. Rc6 {[%emt 0:03:25]} f4 {[%emt 0:01:01]
} 38. Kg2 {[%emt 0:00:39]} Nd2 {[%emt 0:04:44]} 39. Ra1 {[%emt 0:03:00]} e4 {
[%emt 0:01:37]} 40. Kf2 {[%emt 0:01:04]} e3+ {[%emt 0:00:38]} 41. Ke1 {[%emt 0:
00:00]} f3 {[%emt 0:30:32]} 42. Rd1 {[%emt 0:00:17]} f2+ {[%emt 0:00:12]} 43.
Ke2 {[%emt 0:00:05]} Rf7 {[%emt 0:00:06]} 44. Kxe3 {[%emt 0:01:54]} f1=Q {
[%emt 0:00:08]} 45. Rxf1 {[%emt 0:00:14]} Nxf1+ {[%emt 0:00:03]} 46. Kd4 {
[%emt 0:00:24]} Nxh2 {[%emt 0:00:20]} 47. Kxd5 {[%emt 0:00:32]} g5 {[%emt 0:00:
00]} 48. Re6 {[%emt 0:00:24]} g4 {[%emt 0:00:05]} 49. Re2 {[%emt 0:00:13]} g3 {
[%emt 0:00:04]} 50. Rg2 {[%emt 0:00:19]} Nf1 {[%emt 0:00:09]} 51. Rg1 {[%emt 0:
00:00]} Rf2 {[%emt 0:00:16]} 52. c4 {[%emt 0:00:15]} g2 {[%emt 0:00:07]} 53.
Kd4 {[%emt 0:00:35]} Rxc2 {[%emt 0:00:27]} 54. Kd3 {[%emt 0:00:13]} Rd2+ {
[%emt 0:00:07]} 55. Ke4 {[%emt 0:01:00]} Ng3+ {[%emt 0:00:50]} 56. Ke3 {
[%emt 0:00:00]} Rc2 {[%emt 0:00:31]} 57. Kd3 {[%emt 0:01:09]} Ra2 {[%emt 0:00:
00]} 58. Rb1 {[%emt 0:00:50]} Nf1 {[%emt 0:00:30]} 59. Rb7+ {[%emt 0:00:19]}
Kg6 {[%emt 0:00:06]} 60. Rb8 {[%emt 0:00:11]} Kh5 {[%emt 0:00:06]} 61. Rg8 {
[%emt 0:01:13]} Ng3 {[%emt 0:00:06]} 62. Kd4 {[%emt 0:04:49]} 0-1